{"text_format":"1","workbook":"xlsx","n_sheets":1,"sheets":["Лист2"],"not_rendered":{"charts":0,"images":0,"macros":1,"external_links":0,"defined_names":0,"comments":0,"pivot_tables":0},"unopened":[],"bounds":{"document_bytes":16777216,"sheet_cells":100000,"rows_first":2000,"rows_last":500,"rows_between":2000,"halvings":0,"cell_chars":16384,"cell_head_chars":4096},"cells_cut":0,"cells_raw":0,"read":"whole","date_system":"1900"}

{"sheet":"Лист2","index":0,"n_rows":17,"n_cols":45,"rows_kept":17,"cut":false,"hidden":false,"merged":[[0,23,0,32],[0,35,0,44],[1,1,1,2],[0,1,0,20]]}
[null,"Таблица_Слияния",null,null,null,null,null,null,null,null,null,null,null,null,null,null,null,null,null,null,null,null,null,"Таблица_1",null,null,null,null,null,null,null,null,null,null,null,"Таблица_2"]
[null,1,null,{"$f":"B2+1","v":2},null,{"$f":"D2+1","v":3},null,{"$f":"F2+1","v":4},null,{"$f":"H2+1","v":5},null,{"$f":"J2+1","v":6},null,{"$f":"L2+1","v":7},null,{"$f":"N2+1","v":8},null,{"$f":"P2+1","v":9},null,{"$f":"R2+1","v":10},null,null,null,1,{"$f":"X2+1","v":2},{"$f":"Y2+1","v":3},4,5,6,7,8,9,10,null,null,1,{"$f":"AJ2+1","v":2},{"$f":"AK2+1","v":3},4,5,6,7,8,9,10]
[1,null,null,null,null,null,null,null,null,null,null,null,null,null,null,null,null,null,null,null,null,null,1,null,null,null,null,null,null,null,null,null,null,null,1]
[{"$f":"A3+1","v":2},null,null,null,null,null,null,null,null,null,null,null,null,null,null,null,null,null,null,null,null,null,{"$f":"W3+1","v":2},null,null,null,null,null,null,null,null,null,null,null,{"$f":"AI3+1","v":2}]
[{"$f":"A4+1","v":3},null,null,null,null,null,null,null,null,null,null,null,null,null,null,null,null,null,null,null,null,null,{"$f":"W4+1","v":3},null,null,null,null,null,null,null,null,null,null,null,{"$f":"AI4+1","v":3}]
[4,null,null,null,null,null,null,null,null,null,null,null,null,null,null,null,null,null,null,null,null,null,4,null,null,null,null,null,null,null,null,null,null,null,4]
[5,null,null,null,null,null,null,null,null,null,null,null,null,null,null,null,null,null,null,null,null,null,5,null,null,null,null,null,null,null,null,null,null,null,5]
[6,null,null,null,null,null,null,null,null,null,null,null,null,null,null,null,null,null,null,null,null,null,6,null,null,null,null,null,null,null,null,null,null,null,6]
[7,null,null,null,null,null,null,null,null,null,null,null,null,null,null,null,null,null,null,null,null,null,7,null,null,null,null,null,null,null,null,null,null,null,7]
[8,null,null,null,null,null,null,null,null,null,null,null,null,null,null,null,null,null,null,null,null,null,8,null,null,null,null,null,null,null,null,null,null,null,8]
[9,null,null,null,null,null,null,null,null,null,null,null,null,null,null,null,null,null,null,null,null,null,9,null,null,null,null,null,null,null,null,null,null,null,9]
[10,null,null,null,null,null,null,null,null,null,null,null,null,null,null,null,null,null,null,null,null,null,10,null,null,null,null,null,null,null,null,null,null,null,10]
[]
[]
[null,{"$f":"MOD(COLUMN(),2)+1","v":1},{"$f":"MOD(COLUMN(),2)+1","v":2},1,2,1,2,1,2,1,2,1,2,1,2,1,2,1,2,1,2]
[null,{"$f":"ROUND((COLUMN()-1)/2,0)","v":1},{"$f":"ROUND((COLUMN()-1)/2,0)","v":1},2,2,3,3,4,4,5,5,6,6,7,7,8,8,9,9,10,10]
[null,{"$f":"12+(MOD(COLUMN(),2)+1)*11-ROUND((COLUMN()-1)/2,0)","v":22},{"$f":"12+C15*11-C16","v":33},21,32,20,31,19,30,18,29,17,28,16,27,15,26,14,25,13,24]